bitfinex/quotes_ETHUSD_20241120
["timestamp","ask_amount","ask_price","bid_price","bid_amount"]
[1732100681273,0.55248308,3101.7,3100.7,0.7896]
[1732100681274,0.00248308,3101.5,3100.7,0.7896]
[1732100681907,0.49308308,3101.8,3100.7,0.7896]
[1732100684332,0.55,3102.0,3100.7,0.7896]
[1732100684611,0.55,3102.0,3100.5,0.60074507]
[1732100684612,0.4,3102.0,3100.5,0.60074507]
[1732100684998,0.5353,3101.9,3100.5,0.60074507]
[1732100685402,0.5353,3101.9,3100.6,0.8293]
[1732100686001,0.5353,3101.9,3100.8,0.8192]
[1732100686312,9.3053,3102.2,3101.0,0.8192]
[1732100686618,9.3053,3102.2,3101.2,0.8192]
[1732100689199,8.77,3102.2,3101.3,0.03223798]
[1732100689415,8.77,3102.2,3101.4,0.812]
[1732100689929,0.5353,3102.4,3101.4,0.812]
[1732100695073,0.5353,3102.4,3101.6,0.7943]
[1732100696484,0.5353,3102.6,3101.6,0.7943]
[1732100699281,0.5353,3102.6,3101.2,0.7982]
[1732100699474,0.5353,3102.6,3101.3,0.83043489]
[1732100706727,3.0,3103.0,3101.4,2.91536023]
[1732100706908,1.0853,3102.9,3101.6,0.7934]
[1732100707223,0.55,3103.0,3101.7,0.82563375]
[1732100707422,9.3053,3103.1,3101.8,0.7934]
[1732100707576,3.33700471,3103.3,3102.0,0.7934]
[1732100707776,3.33700471,3103.3,3102.1,0.7934]
[1732100708306,0.5353,3103.4,3102.1,0.7934]
[1732100708505,0.5353,3103.4,3102.2,0.7654]
[1732100708880,9.3053,3103.4,3102.2,0.7654]
[1732100709704,0.55,3103.3,3102.2,0.7654]
[1732100711336,8.77,3103.4,3102.2,0.7654]
[1732100711540,8.77,3103.4,3102.4,0.7887]
[1732100712619,0.55,3103.6,3102.4,0.82092609]
[1732100713130,0.55,3103.9,3102.6,0.8164]
[1732100713285,0.5353,3104.0,3102.8,0.8164]
[1732100713286,0.55,3103.7,3102.8,0.8164]
[1732100713494,9.3053,3104.3,3102.8,0.8164]
[1732100714426,9.3153,3104.3,3102.8,0.8164]
[1732100714631,3.0,3104.2,3102.8,0.8164]
[1732100714840,0.55,3104.1,3102.8,0.8164]
[1732100715211,0.55,3103.7,3102.8,0.8164]
[1732100715393,0.55,3103.3,3102.5,0.7531]
[1732100716789,0.55,3103.1,3101.8,0.8032]
[1732100716992,0.55,3102.9,3101.8,0.8032]
[1732100717245,0.55,3102.7,3101.8,0.8032]
[1732100718239,0.5353,3102.8,3101.8,0.8032]
[1732100718891,0.55,3102.9,3101.8,0.8032]
[1732100719734,0.5353,3102.9,3102.0,0.8111]
[1732100720638,0.55,3102.6,3101.4,0.7796]
[1732100721845,0.55,3102.4,3101.4,0.7796]
[1732100721992,9.32,3102.4,3101.4,0.7796]
[1732100722192,3.0,3102.7,3100.6,0.7679]
[1732100722193,0.55,3102.0,3100.6,0.7679]
[1732100722538,0.55,3101.8,3100.6,0.7679]
[1732100723129,8.77,3101.9,3100.8,0.7642]
[1732100723335,0.55,3101.8,3100.8,0.7642]
[1732100723635,0.55,3101.4,3100.5,0.1415154]
[1732100724722,0.5353,3101.5,3100.5,0.1415154]
[1732100724723,0.55,3101.2,3100.5,0.1415154]
[1732100724929,1.0853,3101.0,3100.5,0.1415154]
[1732100725234,4.0853,3101.0,3100.5,0.1415154]
[1732100727238,0.55,3100.8,3100.5,0.1415154]
[1732100728136,8.77,3100.9,3100.6,0.7741]
[1732100728553,3.18,3101.4,3100.6,0.7741]
[1732100729547,0.55,3101.3,3100.6,0.7741]
[1732100730456,3.55,3101.3,3100.6,0.7741]
[1732100730810,0.5353,3101.2,3100.6,0.7741]
[1732100731018,0.55,3101.1,3100.5,0.1415154]
[1732100731818,0.55,3100.9,3100.5,0.1415154]
[1732100733869,8.77,3101.0,3100.5,0.1415154]
[1732100734039,8.77,3101.0,3100.6,0.8225]
[1732100735061,3.18,3101.4,3100.6,0.8225]
[1732100735862,8.77,3101.8,3100.6,0.8225]
[1732100740129,8.77,3101.8,3100.6,0.85474707]
[1732100740553,8.77,3101.8,3100.6,0.85474499]
[1732100740966,0.55,3101.7,3100.6,0.8225]
[1732100741184,3.55,3102.0,3100.6,0.8225]
[1732100741348,0.55,3101.8,3100.6,0.8225]
[1732100741550,3.55,3101.8,3100.6,0.8225]
[1732100747056,0.55,3101.6,3100.6,0.8225]
[1732100747252,1.0853,3101.6,3100.6,0.8225]
[1732100747656,4.0953,3101.6,3100.6,0.8225]
[1732100748393,0.55,3101.4,3100.6,0.8225]
[1732100748587,3.56,3101.4,3100.5,0.1415154]
[1732100748977,0.55,3101.2,3100.5,0.1415154]
[1732100749148,0.5353,3101.3,3100.5,0.1415154]
[1732100749149,8.77,3101.1,3100.5,0.1415154]
[1732100749350,0.55,3101.0,3100.5,0.1415154]
[1732100749844,0.55,3100.8,3100.5,0.1415154]
[1732100752306,0.55,3100.6,3100.5,0.1415154]
[1732100756048,9.32,3100.6,3100.5,0.1415154]
[1732100758013,12.8653,3100.6,3100.5,0.1415154]
[1732100760343,8.77,3100.6,3100.5,0.1415154]
[1732100761017,0.5453,3100.5,3100.3,3.65358127]
[1732100761350,9.3153,3100.4,3100.3,3.65358127]
[1732100761501,12.3153,3100.4,3100.3,3.65358127]
[1732100762260,12.8553,3100.4,3100.3,3.65358127]
[1732100770879,12.8653,3100.4,3100.3,3.33960163]
[1732100771041,3.56,3100.1,3100.0,0.01]
[1732100771247,4.0953,3100.1,3100.0,0.01]
[1732100777093,9.83878603,3100.1,3100.0,0.01]
[1732100777757,0.55,3099.9,3099.3,0.772]
[1732100777957,3.55,3099.7,3099.3,0.772]
[1732100779010,0.56,3099.2,3098.0,0.7845]
[1732100779212,0.5353,3099.3,3098.0,0.95055504]
[1732100779213,0.55,3098.9,3098.0,0.95055504]
[1732100782595,5.74348603,3099.5,3098.2,0.8048]
[1732100784005,0.5353,3099.3,3098.2,0.8048]
[1732100784206,0.55,3099.4,3098.2,0.8048]
[1732100785009,5.74348603,3099.5,3098.3,0.0322724]
[1732100785239,5.74348603,3099.5,3098.4,0.7711]
[1732100785797,3.0,3099.4,3098.4,0.7711]
[1732100786239,0.55,3099.1,3098.4,0.7711]
[1732100789109,3.55,3098.9,3098.0,0.98234504]
[1732100790209,3.55,3098.9,3098.0,0.8134]
[1732100791075,4.0853,3098.7,3098.0,0.8134]
[1732100792019,5.74348603,3098.6,3097.9,0.00105036]
[1732100792222,0.5453,3098.1,3097.4,1.0165154]
[1732100792450,0.55,3097.7,3095.9,0.7706]
[1732100792634,3.55,3097.5,3096.1,0.7706]
[1732100792843,0.56,3097.1,3096.3,0.7706]
[1732100793155,3.55,3096.9,3095.1,0.8174997]
[1732100793360,3.55,3096.9,3094.4,0.7852]
[1732100793361,0.55,3095.9,3094.4,0.7852]
[1732100793540,0.55,3095.9,3094.5,0.03231211]
[1732100793541,3.55,3095.7,3094.5,0.03231211]
[1732100793744,3.55,3095.7,3094.6,0.7852]
[1732100794049,6.4183813,3096.5,3094.3,0.1415154]
[1732100794050,0.55,3096.2,3094.9,0.01]
[1732100794218,0.55,3096.2,3095.0,0.7852]
[1732100794413,0.55,3096.2,3094.3,0.15004498]
[1732100794414,0.55,3096.2,3095.2,0.7852]
[1732100794672,3.18,3096.4,3095.3,0.00852958]
[1732100794816,5.74348603,3097.3,3095.6,0.7852]
[1732100795021,5.74348603,3097.2,3095.8,0.7852]
[1732100795241,5.74348603,3097.2,3096.0,0.7852]
[1732100796235,3.0,3097.1,3096.0,0.7852]
[1732100796836,0.55,3097.0,3096.0,0.7852]
[1732100797042,5.74348603,3097.2,3096.1,0.03229265]
[1732100797247,5.74348603,3097.2,3096.2,0.8233]
[1732100798571,0.55,3097.5,3096.2,0.8233]
[1732100798737,3.55,3097.3,3096.2,0.8233]
[1732100798938,0.55,3097.3,3096.2,0.8233]
[1732100799259,0.55,3097.3,3096.4,0.8233]
[1732100799561,0.55,3097.6,3096.5,0.03229048]
[1732100799760,0.55,3097.6,3096.1,0.8233]
[1732100799923,0.55,3097.6,3096.0,0.01]
[1732100799924,5.74348603,3097.7,3096.2,0.03228913]
[1732100800126,5.74348603,3097.7,3096.3,0.8233]
[1732100800322,5.74348603,3097.7,3096.0,0.01852958]
[1732100800323,3.0,3097.6,3096.5,0.8088]
[1732100801121,3.0,3097.6,3096.7,0.8088]
[1732100801618,3.0,3097.6,3094.8,6.30036023]
[1732100801619,3.18,3097.8,3096.8,0.80728706]
[1732100801931,5.74348603,3098.2,3096.8,0.80728706]
[1732100802134,0.98852835,3098.9,3096.8,0.80728706]
[1732100802135,8.93348603,3098.8,3096.9,0.03228373]
[1732100802337,8.92348603,3098.8,3097.0,0.775]
[1732100802827,5.74348603,3098.7,3097.2,0.775]
[1732100803023,5.74348603,3098.7,3097.4,0.775]
[1732100803223,5.74348603,3098.7,3097.6,0.775]
[1732100804100,3.18,3098.8,3097.7,0.03227714]
[1732100804377,3.18,3098.8,3097.7,0.8147]
[1732100804580,3.18,3098.8,3097.8,0.84697594]
[1732100805174,3.33700471,3098.9,3097.8,0.84697594]
[1732100805389,0.2,3100.0,3098.0,2.92536023]
[1732100805390,5.74348603,3099.5,3098.0,2.92536023]
[1732100805673,5.74348603,3099.4,3098.1,0.84696979]
[1732100807695,0.55,3099.3,3098.1,0.8147]
[1732100809003,3.55,3099.3,3098.1,0.8147]
[1732100810191,3.55,3099.1,3098.1,0.8147]
[1732100810393,4.0853,3099.1,3098.1,0.8147]
[1732100810771,4.0953,3099.1,3098.1,0.8147]
[1732100811409,4.0853,3099.1,3098.1,0.8147]
[1732100812518,3.55,3099.1,3098.1,0.8147]
[1732100813119,9.29348603,3099.1,3098.1,0.8147]
[1732100814927,9.82878603,3099.1,3098.1,0.8147]
[1732100815133,3.56,3098.9,3097.4,0.7901]
[1732100816219,3.55,3098.9,3097.4,0.7901]
[1732100816766,3.55,3098.9,3097.6,0.8027]
[1732100818021,9.29348603,3098.9,3097.8,0.8103]
[1732100818734,5.74348603,3098.9,3097.9,0.03227558]
[1732100818942,5.74348603,3098.9,3098.0,0.8103]
[1732100819318,5.74348603,3098.9,3098.1,0.03227239]
[1732100819519,5.74348603,3098.9,3098.2,0.7958]
[1732100820873,3.55,3098.8,3098.2,0.7958]
[1732100821020,3.55,3098.9,3098.2,0.7958]
[1732100823850,3.56,3098.7,3097.2,0.03227563]
[1732100824167,3.56,3098.7,3097.1,0.7681]
[1732100824168,0.55,3098.3,3097.1,0.7681]
[1732100824676,5.74348603,3098.2,3097.1,0.7681]
[1732100824915,3.55,3098.1,3097.1,0.7681]
[1732100825175,6.73,3098.1,3097.1,0.7681]
[1732100825524,0.01,3097.7,3096.2,0.7681]
[1732100825726,3.55,3097.5,3096.2,0.7681]
[1732100826165,0.5353,3097.4,3096.2,0.7681]
[1732100826376,0.55,3097.3,3096.2,0.7681]
[1732100826668,0.55,3097.1,3096.2,0.7681]
[1732100827033,0.55,3096.9,3096.2,0.7681]
[1732100827369,3.55,3096.7,3096.2,0.7681]
[1732100828564,0.55,3096.7,3096.2,0.7681]
[1732100829225,5.74348603,3096.8,3096.2,0.7681]
[1732100829422,5.74348603,3096.8,3096.3,0.03229422]
[1732100829626,5.74348603,3096.8,3096.2,0.7681]
[1732100829861,0.55,3096.7,3096.2,0.7681]
[1732100830232,5.74348603,3096.8,3096.2,0.7681]
[1732100831148,0.55,3097.0,3096.2,0.7681]
[1732100832931,3.55,3096.8,3095.1,0.7978]
[1732100833248,1.0853,3096.6,3095.1,0.7978]
[1732100833954,4.0853,3096.6,3095.1,0.7978]
[1732100834437,0.55,3096.2,3095.1,0.7978]
[1732100834770,6.29348603,3096.2,3095.1,0.7978]
[1732100835447,0.55,3095.9,3095.1,0.7978]
[1732100835648,6.29348603,3095.9,3095.1,0.7978]
[1732100835830,6.29348603,3095.9,3094.4,0.0323053]
[1732100835831,5.74348603,3095.9,3095.2,0.03230769]
[1732100836034,5.74348603,3095.9,3095.3,0.8116]
[1732100836973,3.33700471,3096.7,3095.5,0.8116]
[1732100837140,3.33700471,3096.7,3095.7,0.8116]
[1732100839098,0.55,3096.6,3095.7,0.8116]
[1732100840412,6.29348603,3096.6,3095.7,0.8116]
[1732100843491,5.74348603,3096.6,3095.7,0.8116]
[1732100844819,0.55,3096.5,3095.7,0.8116]
[1732100845020,3.55,3096.5,3095.7,0.8116]
[1732100846346,9.29348603,3096.5,3095.7,0.8116]
[1732100849296,3.55,3096.5,3095.7,0.8116]
[1732100850253,0.55,3096.3,3095.7,0.8116]
[1732100853564,0.55,3096.3,3096.0,0.875]
[1732100854360,5.74348603,3096.4,3096.1,0.8057]
[1732100855367,0.55,3096.5,3096.1,0.8057]
[1732100856575,5.74348603,3096.6,3096.1,0.8057]
[1732100856728,0.55,3096.5,3096.1,0.8057]
[1732100856931,2.92623266,3096.4,3096.0,0.875]
[1732100857137,3.55,3096.5,3096.0,0.875]
[1732100858031,0.5353,3096.4,3096.0,0.875]
[1732100858257,6.29348603,3096.3,3096.0,0.875]
[1732100861291,0.01,3095.3,3094.3,0.1415154]
[1732100861439,0.01,3094.9,3094.3,0.1415154]
[1732100861638,0.04429857,3094.9,3094.3,0.1415154]
[1732100862180,5.74348603,3095.2,3094.3,0.1415154]
[1732100862339,5.74348603,3095.2,3094.4,0.8322]
[1732100862340,5.7777846,3095.2,3094.4,0.8322]
[1732100864144,5.74348603,3095.2,3094.4,0.8322]
[1732100864580,5.7777846,3095.2,3094.4,0.8322]
[1732100864742,5.74348603,3095.2,3094.4,0.8322]
[1732100864939,0.03429857,3095.1,3094.4,0.8322]
[1732100865583,5.74348603,3095.2,3094.4,0.8322]
[1732100867390,6.52700471,3095.5,3094.4,0.8322]
[1732100869587,3.33700471,3095.5,3094.5,0.03231114]
[1732100869888,5.75348603,3096.1,3094.6,0.7814]
[1732100870086,5.7777846,3096.0,3094.7,0.81370552]
[1732100870889,0.01,3096.0,3094.7,0.81370552]
[1732100871202,0.01,3096.0,3094.7,0.7814]
[1732100872085,0.04429857,3096.0,3094.7,0.7814]
[1732100872381,3.0,3096.2,3094.9,0.7505]
[1732100872597,3.0,3096.2,3095.0,0.80160319]
[1732100872880,0.03429857,3096.2,3095.0,0.80160319]
[1732100873082,0.03429857,3096.5,3095.0,0.80160319]
[1732100874344,0.03429857,3096.5,3095.0,0.81013277]
[1732100875798,3.33700471,3096.6,3095.3,0.8308]
[1732100876010,3.33700471,3096.6,3095.5,0.7999]
[1732100876162,3.33700471,3096.6,3095.6,0.83219371]
[1732100878708,3.60428944,3096.4,3095.6,0.7999]
[1732100878910,3.03429857,3096.3,3095.6,0.7999]
[1732100879498,0.03429857,3096.3,3095.6,0.7999]
[1732100879863,3.0,3096.4,3095.6,0.7999]
[1732100880318,3.0,3096.5,3095.6,0.7999]
[1732100880510,0.03429857,3096.4,3095.6,0.7999]
[1732100881010,3.0,3096.5,3095.6,0.7999]
[1732100881696,2.82882935,3096.5,3095.6,0.7999]
[1732100881902,2.82882935,3096.5,3095.7,0.03229848]
[1732100882105,2.82882935,3096.5,3095.8,0.8018]
[1732100882421,2.86312792,3096.5,3095.8,0.8018]
[1732100882619,6.47509138,3096.5,3095.8,0.8018]
[1732100882920,6.44079281,3096.5,3095.8,0.8018]
[1732100883120,0.55,3096.3,3095.8,0.8018]
[1732100883420,0.03429857,3096.2,3094.7,0.7846]
[1732100883567,0.03429857,3096.2,3094.9,0.7846]
[1732100887008,3.0,3095.7,3094.9,0.7846]
[1732100887214,8.74348603,3095.7,3094.9,0.7846]
[1732100889003,0.03429857,3095.6,3094.9,0.7846]
[1732100890214,8.74348603,3095.7,3094.9,0.7846]
[1732100890530,0.01,3095.3,3094.9,0.7846]
[1732100890739,0.04429857,3095.3,3094.4,0.7652]
[1732100892187,3.0,3095.5,3094.5,0.03231417]
[1732100892387,3.0,3095.5,3094.6,0.7954]
[1732100892782,3.0,3095.5,3094.7,0.03231136]
[1732100893005,3.19,3095.9,3094.8,0.8221]
[1732100893203,0.04429857,3096.1,3094.8,0.8221]
[1732100893685,0.03429857,3096.1,3094.8,0.8221]
[1732100893962,0.03429857,3096.2,3095.0,0.8241]
[1732100894429,2.9610159,3096.2,3095.0,0.8241]
[1732100895035,3.0,3096.1,3095.0,0.8241]
[1732100895330,0.55,3095.9,3095.0,0.8241]
[1732100895484,0.03429857,3095.8,3095.0,0.8241]
[1732100895856,3.03429857,3096.1,3095.0,0.8241]
[1732100896136,2.92671733,3095.9,3095.0,0.8241]
[1732100896289,0.03429857,3095.8,3095.0,0.8241]
[1732100898553,3.03429857,3095.8,3095.0,0.8241]
[1732100898714,0.55,3095.4,3095.0,0.8241]
[1732100898901,0.03429857,3095.3,3095.0,0.8241]
[1732100899107,0.58429857,3095.4,3095.0,0.8241]
[1732100900919,0.58429857,3095.4,3094.4,0.7589]
[1732100903147,0.03429857,3095.3,3094.4,0.7589]
[1732100903343,0.03429857,3095.6,3094.4,0.7589]
[1732100904004,5.74348603,3095.8,3094.6,0.7848]
[1732100904200,0.01,3096.3,3094.7,0.81710629]
[1732100905240,2.9710159,3096.5,3094.7,0.81710629]
[1732100905445,2.9610159,3096.5,3094.7,0.81710629]
[1732100905664,3.33700471,3096.6,3095.0,0.00852958]
[1732100905819,3.33700471,3096.6,3094.4,6.385]
[1732100905820,3.33700471,3096.6,3095.2,0.00852958]
[1732100906159,3.33700471,3096.6,3095.3,0.8154]
[1732100906364,3.33700471,3096.6,3095.4,0.847696]
[1732100906517,3.33700471,3096.6,3095.4,0.85622558]
[1732100906723,0.01,3097.4,3095.4,0.85622558]
[1732100906957,2.92671733,3097.5,3095.8,0.8154]
[1732100907120,3.34700471,3098.0,3096.1,0.00852958]
[1732100907321,3.37130328,3098.0,3096.2,0.8154]
[1732100907558,3.33700471,3098.0,3096.6,0.7569]
[1732100907735,3.33700471,3098.0,3096.8,0.7569]
[1732100907933,0.04429857,3098.4,3096.9,0.78918217]
[1732100908161,0.03429857,3098.4,3096.9,0.78918217]
[1732100908378,3.33700471,3099.0,3097.3,0.7569]
[1732100908516,0.03429857,3098.9,3097.4,0.78917374]
[1732100908996,3.33700471,3099.0,3097.4,0.79770332]
[1732100909318,3.33700471,3099.0,3097.6,0.00852958]
[1732100909564,0.01,3099.5,3097.7,0.809]
[1732100909877,0.04429857,3099.5,3097.8,0.79736992]
[1732100910659,0.55,3099.4,3097.8,0.7651]
[1732100910864,0.01,3099.1,3097.8,0.7651]
[1732100911070,0.04429857,3099.1,3097.8,0.7651]
[1732100911723,0.01,3098.9,3097.8,0.7651]
[1732100911966,0.01,3098.2,3096.1,0.00852958]
[1732100912175,0.01,3097.5,3096.5,0.7615]
[1732100912321,0.04429857,3097.5,3096.5,0.7615]
[1732100912893,3.0,3097.6,3096.5,0.7615]
[1732100913557,5.75348603,3097.7,3096.7,0.7615]
[1732100913558,5.74348603,3097.7,3096.7,0.7615]
[1732100913765,5.74348603,3097.7,3096.9,0.7615]
[1732100913966,3.0,3098.1,3097.0,0.03228719]
[1732100914174,5.74348603,3098.8,3097.1,0.7615]
[1732100914175,0.01,3098.7,3097.1,0.7615]
[1732100914390,0.01,3098.7,3097.3,0.7615]
[1732100914607,0.03429857,3098.8,3097.5,0.8135]
[1732100914897,3.33700471,3098.9,3097.7,0.8135]
[1732100915062,3.37130328,3098.9,3097.7,0.8135]
[1732100915454,3.33700471,3098.9,3097.8,0.03227681]
[1732100915655,3.33700471,3098.9,3097.4,0.8135]
[1732100915884,0.03429857,3098.8,3097.5,0.84577371]
[1732100916095,0.03429857,3098.8,3097.5,0.8135]
[1732100916265,0.03429857,3098.8,3097.7,0.7995]
[1732100916685,0.01,3098.7,3097.7,0.7995]
[1732100916850,3.03429857,3098.6,3097.7,0.7995]
[1732100917184,0.55,3098.5,3097.7,0.7995]
[1732100917385,0.03429857,3098.4,3097.7,0.7995]
[1732100917598,3.03429857,3098.4,3097.7,0.7995]
[1732100917962,0.55,3098.3,3097.7,0.7995]
[1732100918156,0.56,3098.1,3097.4,0.7995]
[1732100918401,3.55,3097.9,3097.4,0.7995]
[1732100918712,3.59429857,3097.9,3097.4,0.7995]
[1732100920310,3.0,3097.9,3097.4,0.7995]
[1732100920614,5.74348603,3098.8,3097.4,0.7995]
[1732100920761,3.33700471,3098.9,3097.5,0.83177763]
[1732100920959,0.03429857,3098.8,3097.5,0.83177763]
[1732100921472,3.32708162,3098.9,3097.5,0.83177763]
[1732100921900,0.03429857,3098.8,3097.5,0.83177763]
[1732100922570,0.03429857,3098.8,3097.5,0.7995]
[1732100922988,3.03429857,3098.8,3097.5,0.7995]
[1732100923211,0.55,3098.7,3097.5,0.7995]
[1732100923373,3.0,3098.8,3097.6,0.78817842]
[1732100927501,3.32708162,3098.9,3097.6,0.78817842]
[1732100928148,0.03429857,3098.8,3097.6,0.7559]
[1732100928346,0.01,3098.5,3097.6,0.7559]
[1732100928544,0.04429857,3098.5,3097.6,0.7559]
[1732100928748,0.01,3098.3,3097.6,0.7559]
[1732100928949,0.04429857,3098.5,3097.6,0.7559]
[1732100929635,0.01,3098.2,3097.6,0.7559]
[1732100930196,0.04429857,3098.5,3097.6,0.7559]
[1732100930431,0.01,3098.2,3097.6,0.7559]
[1732100930809,0.01,3098.3,3097.6,0.7559]
[1732100931714,0.55,3098.4,3097.6,0.7559]
[1732100933215,0.55,3098.5,3097.6,0.7559]
[1732100933706,0.55,3098.6,3097.6,0.7559]
[1732100934217,0.03429857,3098.7,3097.6,0.7559]
[1732100934410,3.33708162,3098.9,3097.8,0.7879]
[1732100935070,3.32708162,3098.9,3097.9,0.03227376]
[1732100935305,3.32708162,3098.9,3097.9,0.7816]
[1732100935611,3.32708162,3098.9,3098.1,0.7816]
[1732100935820,0.01,3099.5,3098.3,0.7816]
[1732100936127,0.01,3099.5,3098.5,0.7877]
[1732100936467,0.01,3099.5,3098.6,0.81996642]
[1732100936919,0.03429857,3099.9,3098.6,0.81996642]
[1732100937209,83.51708162,3100.0,3098.6,0.81996642]
[1732100938117,0.04429857,3099.9,3098.6,0.7877]
[1732100938983,3.04429857,3099.9,3098.6,0.7877]
[1732100939318,0.55,3099.8,3098.6,0.7877]
[1732100939521,0.55,3099.6,3098.6,0.7877]
[1732100939683,0.58429857,3099.6,3098.6,0.7877]
[1732100939883,0.55,3099.8,3098.7,0.03226974]
[1732100940084,0.58429857,3099.8,3098.7,0.7566]
[1732100940301,3.01,3099.9,3098.7,0.7566]
[1732100940612,3.04429857,3099.9,3098.7,0.7566]
[1732100941019,3.01,3099.9,3098.8,0.84666576]
[1732100941518,0.55,3099.8,3098.8,0.8144]
[1732100941820,0.03429857,3099.7,3098.8,0.8144]
[1732100942232,0.55,3099.4,3098.8,0.8144]
[1732100942372,3.0,3099.6,3098.8,0.8144]
[1732100942574,3.0,3099.6,3099.0,0.802]
[1732100943311,0.58429857,3099.5,3099.0,0.802]
[1732100943468,0.55,3099.5,3099.0,0.802]
[1732100943669,3.0,3099.6,3099.0,0.802]
[1732100944715,3.0,3099.6,3099.2,0.7856]
[1732100945084,3.0,3099.9,3099.2,0.7856]
[1732100945469,0.01,3099.8,3099.2,0.7856]
[1732100946420,0.56,3099.8,3099.2,0.7856]
[1732100946811,0.55,3099.6,3099.2,0.7856]
[1732100947018,0.01,3099.3,3098.2,0.8047]
[1732100947213,0.55,3099.2,3098.2,0.8047]
[1732100948211,0.56,3099.3,3098.4,0.8077]
[1732100948412,3.03429857,3099.4,3098.4,0.8077]
[1732100948618,3.0,3099.4,3098.4,0.8077]
[1732100949317,5.74348603,3099.5,3098.6,0.8077]
[1732100949548,5.74348603,3099.5,3098.8,0.8077]
[1732100950748,0.55,3099.4,3098.8,0.8077]
[1732100951505,0.55,3099.7,3098.8,0.8077]
[1732100952299,0.04429857,3099.6,3098.8,0.8077]
[1732100952449,0.55,3099.5,3098.8,0.8077]
[1732100954056,0.56,3099.3,3098.8,0.8077]
[1732100955790,0.01,3099.3,3098.8,0.8077]
[1732100956165,0.56,3099.3,3098.8,0.8077]
[1732100956472,0.01,3099.0,3097.9,0.7643]
[1732100956713,0.55,3098.9,3097.9,0.7643]
[1732100957552,0.55,3098.7,3097.9,0.7643]
[1732100957750,0.55,3098.8,3097.9,0.7643]
[1732100958764,0.55,3098.9,3097.9,0.7643]
[1732100958965,0.01,3099.3,3098.1,0.7643]
[1732100959205,0.03429857,3099.4,3098.1,0.7643]
[1732100960112,0.04429857,3099.5,3098.1,0.7643]
[1732100960405,0.03429857,3099.6,3098.3,0.7643]
[1732100961356,0.01,3099.5,3098.3,0.7643]
[1732100961557,0.56,3099.5,3098.3,0.7643]
[1732100961757,0.03429857,3099.4,3098.3,0.7643]
[1732100962158,0.55,3099.3,3098.3,0.7643]
[1732100962412,0.58429857,3099.3,3098.3,0.7643]
[1732100963194,0.04429857,3099.5,3098.5,0.8098]
[1732100963400,0.01,3099.5,3098.5,0.8098]
[1732100964518,3.01,3099.5,3098.5,0.8098]
[1732100964730,0.55,3099.3,3098.5,0.8098]
[1732100965280,0.55,3099.1,3098.5,0.8098]
[1732100967390,3.55,3099.3,3098.5,0.8098]
[1732100967700,3.55,3099.4,3098.5,0.8098]
[1732100968033,3.99528229,3099.5,3098.6,0.03227029]
[1732100968235,6.99528229,3099.6,3098.7,0.829]
[1732100968389,7.00528229,3099.6,3098.7,0.829]
[1732100968586,3.01,3099.6,3098.7,0.829]
[1732100968786,3.04429857,3099.6,3098.7,0.829]
[1732100969385,0.55,3099.5,3098.7,0.829]
[1732100970017,0.55,3099.3,3098.7,0.829]
[1732100970227,4.54528229,3099.3,3098.7,0.829]
[1732100970433,4.57958086,3099.3,3098.7,0.829]
[1732100971100,0.55,3099.1,3098.7,0.829]
[1732100977203,0.55,3098.9,3098.7,0.829]
[1732100979655,0.55,3098.7,3097.6,0.8298]
[1732100979818,7.55250689,3098.5,3097.6,0.8298]
[1732100980013,3.0,3098.3,3097.6,0.8298]
[1732100980438,0.03429857,3098.2,3097.6,0.8298]
[1732100981365,4.0853,3098.1,3096.5,0.8298]
[1732100981565,0.55,3097.9,3096.5,0.8298]
[1732100981900,0.55,3097.7,3096.7,0.8298]
[1732100982229,4.0343361,3097.9,3096.7,0.8298]
[1732100982230,0.55,3097.8,3096.7,0.8298]
[1732100982615,0.55,3098.0,3096.9,0.8298]
[1732100982827,0.58429857,3098.1,3096.3,0.8298]
[1732100983030,0.58429857,3098.1,3096.5,0.8298]
[1732100983368,0.58429857,3098.1,3096.6,0.86208428]
[1732100985779,0.01,3097.5,3096.6,0.8298]
[1732100985989,0.01,3097.3,3096.6,0.8298]
[1732100986139,0.55,3097.4,3096.6,0.8298]
[1732100986341,5.74348603,3097.7,3096.6,0.8298]
[1732100986584,3.99150714,3097.9,3096.8,0.8192]
[1732100986739,0.55,3098.1,3097.0,0.8192]
[1732100988047,0.59429857,3098.3,3097.0,0.8192]
[1732100989093,3.99168103,3098.6,3097.2,0.8302]
[1732100989288,3.99168103,3098.8,3097.4,0.8302]
[1732100989587,0.04429857,3098.9,3097.6,0.8302]
[1732100990375,0.55,3098.8,3097.6,0.8302]
[1732100990576,0.04429857,3098.9,3097.6,0.8302]
[1732100990577,0.55,3098.6,3097.6,0.8302]
[1732100990803,0.03429857,3098.5,3097.6,0.8302]
[1732100991092,0.03429857,3098.6,3097.6,0.8302]
[1732100991276,0.55,3098.5,3097.6,0.8302]
[1732100991477,0.03429857,3098.4,3097.6,0.8302]
[1732100991790,0.56,3098.3,3097.6,0.8302]
[1732100992044,0.55,3098.1,3097.6,0.8302]
[1732100992831,0.59429857,3098.3,3097.6,0.8302]
[1732100994258,0.01,3098.3,3097.6,0.8302]
[1732100994402,3.9925376,3098.8,3097.6,0.8302]
[1732100994595,0.01,3099.0,3097.6,0.8302]
[1732100994596,0.03429857,3098.5,3097.6,0.8302]
[1732100995208,0.01,3098.8,3097.6,0.8302]
[1732100996567,0.55,3098.8,3097.6,0.8302]